Workbook

Sheet युक्तियाँ
B2: टेम्पलेट युक्तियाँ
B4: क्या व्यय रूझान पत्रक और मासिक व्यय विवरण के बीच जाने का कोई आसान तरीका है?
C5: किसी विशिष्ट महिने के व्यय पर त्वरित रूप से नेविगेट करने के लिए, चार्ट के ऊपर जनवरी बटन जैसे संबद्ध बटन पर क्लिक करें. फिर, व्यय रूझान पत्रक पर लौटने के लिए, पत्रक के शीर्ष के पास सारांश बटन पर क्लिक करें.
B6: मैं व्यय सारांश या नए मासिक व्यय में एक नए व्यय प्रकार को किस तरह जोड़ूँ?
C7: चार्ट के नीचे व्यय सारांश और हर महीने के व्यय विवरण Excel तालिकाएँ हैं. किसी Excel तालिका में नई पंक्तियाँ जोड़ने के लिए, निम्न में से एक कार्य करें:
C8: ● | D8: यदि तालिका में कुल योग पंक्ति नहीं है, तो तालिका के नीचे लिखना प्रारंभ करें और जब आप Enter या Tab कुंजी दबाते हैं, तो यह स्वचालित रूप से विस्तृत होगी.
C9: ● | D9: अंतिम व्यय के लिए कुल के रूप में कुल पंक्ति के ऊपर अंतिम कक्ष में अपना कक्ष सूचक रखें और फिर Tab कुंजी दबाएँ.
C10: ● | D10: तालिका में राइट-क्लिक करें और पॉप अप मेनू पर सम्मिलित करें इंगित करें और फिर तालिका पंक्ति ऊपर या तालिका पंक्ति नीचे पर क्लिक करें.
C11: ● | D11: तालिका के निचले भाग पर दाएँ कोने में, अपने माउस को तालिका आकार बदलने वाले हैंडल पर रखें और उपलब्ध तालिका पंक्तियाँ बढ़ाने के लिए नीचे खींचें.

Sheet सारांश
A1: s
B2: व्यय रूझान
B18: व्यय | C18: जनवरी | D18: फ़रवरी | E18: मार्च | F18: अप्रैल | G18: मई | H18: जून | I18: जुलाई | J18: अगस्त | K18: सितंबर | L18: अक्टूबर | M18: नवंबर | N18: दिसंबर | O18: कुल योग | P18: रूझान
B19: व्यय 1 | C19: =SUMIFS(जनवरीव्यय[राशि],जनवरीव्यय[श्रेणी],व्ययसारांश[[#This Row],[व्यय]]) -> 33.00 | D19: =SUMIFS(फरवरीव्यय[राशि],फरवरीव्यय[श्रेणी],व्ययसारांश[[#This Row],[व्यय]]) -> 375.00 | E19: =SUMIFS(मार्चव्यय[राशि],मार्चव्यय[श्रेणी],व्ययसारांश[[#This Row],[व्यय]]) -> 33.00 | F19: =SUMIFS(अप्रैलव्यय[राशि],अप्रैलव्यय[श्रेणी],व्ययसारांश[[#This Row],[व्यय]]) -> 45.00 | G19: =SUMIFS(मईव्यय[राशि],मईव्यय[श्रेणी],व्ययसारांश[[#This Row],[व्यय]]) -> 375.00 | H19: =SUMIFS(जूनव्यय[राशि],जूनव्यय[श्रेणी],व्ययसारांश[[#This Row],[व्यय]]) -> 201.00 | I19: =SUMIFS(जुलाईव्यय[राशि],जुलाईव्यय[श्रेणी],व्ययसारांश[[#This Row],[व्यय]]) -> 0.00 | J19: =SUMIFS(अगस्तव्यय[राशि],अगस्तव्यय[श्रेणी],व्ययसारांश[[#This Row],[व्यय]]) -> 0.00 | K19: =SUMIFS(सितंबरव्यय[राशि],सितंबरव्यय[श्रेणी],व्ययसारांश[[#This Row],[व्यय]]) -> 0.00 | L19: =SUMIFS(अक्टूबरव्यय[राशि],अक्टूबरव्यय[श्रेणी],व्ययसारांश[[#This Row],[व्यय]]) -> 0.00 | M19: =SUMIFS(नवंबरव्यय[राशि],नवंबरव्यय[श्रेणी],व्ययसारांश[[#This Row],[व्यय]]) -> 0.00 | N19: =SUMIFS(दिसंबरव्यय[राशि],दिसंबरव्यय[श्रेणी],व्ययसारांश[[#This Row],[व्यय]]) -> 201.00 | O19: =SUM(व्ययसारांश[[#This Row],[जनवरी]:[दिसंबर]]) -> 1,263.00
B20: व्यय 2 | C20: =SUMIFS(जनवरीव्यय[राशि],जनवरीव्यय[श्रेणी],व्ययसारांश[[#This Row],[व्यय]]) -> 238.00 | D20: =SUMIFS(फरवरीव्यय[राशि],फरवरीव्यय[श्रेणी],व्ययसारांश[[#This Row],[व्यय]]) -> 238.00 | E20: =SUMIFS(मार्चव्यय[राशि],मार्चव्यय[श्रेणी],व्ययसारांश[[#This Row],[व्यय]]) -> 238.00 | F20: =SUMIFS(अप्रैलव्यय[राशि],अप्रैलव्यय[श्रेणी],व्ययसारांश[[#This Row],[व्यय]]) -> 123.00 | G20: =SUMIFS(मईव्यय[राशि],मईव्यय[श्रेणी],व्ययसारांश[[#This Row],[व्यय]]) -> 111.00 | H20: =SUMIFS(जूनव्यय[राशि],जूनव्यय[श्रेणी],व्ययसारांश[[#This Row],[व्यय]]) -> 98.00 | I20: =SUMIFS(जुलाईव्यय[राशि],जुलाईव्यय[श्रेणी],व्ययसारांश[[#This Row],[व्यय]]) -> 0.00 | J20: =SUMIFS(अगस्तव्यय[राशि],अगस्तव्यय[श्रेणी],व्ययसारांश[[#This Row],[व्यय]]) -> 0.00 | K20: =SUMIFS(सितंबरव्यय[राशि],सितंबरव्यय[श्रेणी],व्ययसारांश[[#This Row],[व्यय]]) -> 0.00 | L20: =SUMIFS(अक्टूबरव्यय[राशि],अक्टूबरव्यय[श्रेणी],व्ययसारांश[[#This Row],[व्यय]]) -> 0.00 | M20: =SUMIFS(नवंबरव्यय[राशि],नवंबरव्यय[श्रेणी],व्ययसारांश[[#This Row],[व्यय]]) -> 0.00 | N20: =SUMIFS(दिसंबरव्यय[राशि],दिसंबरव्यय[श्रेणी],व्ययसारांश[[#This Row],[व्यय]]) -> 440.00 | O20: =SUM(व्ययसारांश[[#This Row],[जनवरी]:[दिसंबर]]) -> 1,486.00
B21: व्यय 3 | C21: =SUMIFS(जनवरीव्यय[राशि],जनवरीव्यय[श्रेणी],व्ययसारांश[[#This Row],[व्यय]]) -> 110.00 | D21: =SUMIFS(फरवरीव्यय[राशि],फरवरीव्यय[श्रेणी],व्ययसारांश[[#This Row],[व्यय]]) -> 110.00 | E21: =SUMIFS(मार्चव्यय[राशि],मार्चव्यय[श्रेणी],व्ययसारांश[[#This Row],[व्यय]]) -> 110.00 | F21: =SUMIFS(अप्रैलव्यय[राशि],अप्रैलव्यय[श्रेणी],व्ययसारांश[[#This Row],[व्यय]]) -> 125.00 | G21: =SUMIFS(मईव्यय[राशि],मईव्यय[श्रेणी],व्ययसारांश[[#This Row],[व्यय]]) -> 333.00 | H21: =SUMIFS(जूनव्यय[राशि],जूनव्यय[श्रेणी],व्ययसारांश[[#This Row],[व्यय]]) -> 122.00 | I21: =SUMIFS(जुलाईव्यय[राशि],जुलाईव्यय[श्रेणी],व्ययसारांश[[#This Row],[व्यय]]) -> 0.00 | J21: =SUMIFS(अगस्तव्यय[राशि],अगस्तव्यय[श्रेणी],व्ययसारांश[[#This Row],[व्यय]]) -> 0.00 | K21: =SUMIFS(सितंबरव्यय[राशि],सितंबरव्यय[श्रेणी],व्ययसारांश[[#This Row],[व्यय]]) -> 0.00 | L21: =SUMIFS(अक्टूबरव्यय[राशि],अक्टूबरव्यय[श्रेणी],व्ययसारांश[[#This Row],[व्यय]]) -> 0.00 | M21: =SUMIFS(नवंबरव्यय[राशि],नवंबरव्यय[श्रेणी],व्ययसारांश[[#This Row],[व्यय]]) -> 0.00 | N21: =SUMIFS(दिसंबरव्यय[राशि],दिसंबरव्यय[श्रेणी],व्ययसारांश[[#This Row],[व्यय]]) -> 122.00 | O21: =SUM(व्ययसारांश[[#This Row],[जनवरी]:[दिसंबर]]) -> 1,032.00
B22: व्यय 4 | C22: =SUMIFS(जनवरीव्यय[राशि],जनवरीव्यय[श्रेणी],व्ययसारांश[[#This Row],[व्यय]]) -> 426.00 | D22: =SUMIFS(फरवरीव्यय[राशि],फरवरीव्यय[श्रेणी],व्ययसारांश[[#This Row],[व्यय]]) -> 84.00 | E22: =SUMIFS(मार्चव्यय[राशि],मार्चव्यय[श्रेणी],व्ययसारांश[[#This Row],[व्यय]]) -> 84.00 | F22: =SUMIFS(अप्रैलव्यय[राशि],अप्रैलव्यय[श्रेणी],व्ययसारांश[[#This Row],[व्यय]]) -> 426.00 | G22: =SUMIFS(मईव्यय[राशि],मईव्यय[श्रेणी],व्ययसारांश[[#This Row],[व्यय]]) -> 125.00 | H22: =SUMIFS(जूनव्यय[राशि],जूनव्यय[श्रेणी],व्ययसारांश[[#This Row],[व्यय]]) -> 187.00 | I22: =SUMIFS(जुलाईव्यय[राशि],जुलाईव्यय[श्रेणी],व्ययसारांश[[#This Row],[व्यय]]) -> 0.00 | J22: =SUMIFS(अगस्तव्यय[राशि],अगस्तव्यय[श्रेणी],व्ययसारांश[[#This Row],[व्यय]]) -> 0.00 | K22: =SUMIFS(सितंबरव्यय[राशि],सितंबरव्यय[श्रेणी],व्ययसारांश[[#This Row],[व्यय]]) -> 0.00 | L22: =SUMIFS(अक्टूबरव्यय[राशि],अक्टूबरव्यय[श्रेणी],व्ययसारांश[[#This Row],[व्यय]]) -> 0.00 | M22: =SUMIFS(नवंबरव्यय[राशि],नवंबरव्यय[श्रेणी],व्ययसारांश[[#This Row],[व्यय]]) -> 0.00 | N22: =SUMIFS(दिसंबरव्यय[राशि],दिसंबरव्यय[श्रेणी],व्ययसारांश[[#This Row],[व्यय]]) -> 187.00 | O22: =SUM(व्ययसारांश[[#This Row],[जनवरी]:[दिसंबर]]) -> 1,519.00
B23: व्यय 5 | C23: =SUMIFS(जनवरीव्यय[राशि],जनवरीव्यय[श्रेणी],व्ययसारांश[[#This Row],[व्यय]]) -> 54.00 | D23: =SUMIFS(फरवरीव्यय[राशि],फरवरीव्यय[श्रेणी],व्ययसारांश[[#This Row],[व्यय]]) -> 54.00 | E23: =SUMIFS(मार्चव्यय[राशि],मार्चव्यय[श्रेणी],व्ययसारांश[[#This Row],[व्यय]]) -> 109.00 | F23: =SUMIFS(अप्रैलव्यय[राशि],अप्रैलव्यय[श्रेणी],व्ययसारांश[[#This Row],[व्यय]]) -> 98.00 | G23: =SUMIFS(मईव्यय[राशि],मईव्यय[श्रेणी],व्ययसारांश[[#This Row],[व्यय]]) -> 33.00 | H23: =SUMIFS(जूनव्यय[राशि],जूनव्यय[श्रेणी],व्ययसारांश[[#This Row],[व्यय]]) -> 441.00 | I23: =SUMIFS(जुलाईव्यय[राशि],जुलाईव्यय[श्रेणी],व्ययसारांश[[#This Row],[व्यय]]) -> 0.00 | J23: =SUMIFS(अगस्तव्यय[राशि],अगस्तव्यय[श्रेणी],व्ययसारांश[[#This Row],[व्यय]]) -> 0.00 | K23: =SUMIFS(सितंबरव्यय[राशि],सितंबरव्यय[श्रेणी],व्ययसारांश[[#This Row],[व्यय]]) -> 0.00 | L23: =SUMIFS(अक्टूबरव्यय[राशि],अक्टूबरव्यय[श्रेणी],व्ययसारांश[[#This Row],[व्यय]]) -> 0.00 | M23: =SUMIFS(नवंबरव्यय[राशि],नवंबरव्यय[श्रेणी],व्ययसारांश[[#This Row],[व्यय]]) -> 0.00 | N23: =SUMIFS(दिसंबरव्यय[राशि],दिसंबरव्यय[श्रेणी],व्ययसारांश[[#This Row],[व्यय]]) -> 99.00 | O23: =SUM(व्ययसारांश[[#This Row],[जनवरी]:[दिसंबर]]) -> 888.00
B24: कुल योग | C24: =SUBTOTAL(109,व्ययसारांश[जनवरी]) -> 861.00 | D24: =SUBTOTAL(109,व्ययसारांश[फ़रवरी]) -> 861.00 | E24: =SUBTOTAL(109,व्ययसारांश[मार्च]) -> 574.00 | F24: =SUBTOTAL(109,व्ययसारांश[अप्रैल]) -> 817.00 | G24: =SUBTOTAL(109,व्ययसारांश[मई]) -> 977.00 | H24: =SUBTOTAL(109,व्ययसारांश[जून]) -> 1,049.00 | I24: =SUBTOTAL(109,व्ययसारांश[जुलाई]) -> 0.00 | J24: =SUBTOTAL(109,व्ययसारांश[अगस्त]) -> 0.00 | K24: =SUBTOTAL(109,व्ययसारांश[सितंबर]) -> 0.00 | L24: =SUBTOTAL(109,व्ययसारांश[अक्टूबर]) -> 0.00 | M24: =SUBTOTAL(109,व्ययसारांश[नवंबर]) -> 0.00 | N24: =SUBTOTAL(109,व्ययसारांश[दिसंबर]) -> 1,049.00 | O24: =SUBTOTAL(109,व्ययसारांश[कुल योग]) -> 6,188.00

Sheet जनवरी
B2: जनवरी व्यय
B4: दिनांक | C4: क्रय आदेश# | D4: राशि | E4: श्रेणी | F4: वर्णन
B5: 2011-01-04 | C5: A-12345 | D5: 33.00 | E5: व्यय 1 | F5: आपूर्ति
B6: 2011-01-05 | C6: A-12346 | D6: 238.00 | E6: व्यय 2
D7: 342.00 | E7: व्यय 4
D8: 110.00 | E8: व्यय 3
D9: 84.00 | E9: व्यय 4
D10: 54.00 | E10: व्यय 5
B11: कुल योग | D11: =SUBTOTAL(109,जनवरीव्यय[राशि]) -> 861.00

Sheet फ़रवरी
B2: फ़रवरी व्यय
B4: दिनांक | C4: क्रय आदेश# | D4: राशि | E4: श्रेणी | F4: वर्णन
B5: 2011-02-03 | C5: A-12345 | D5: 33.00 | E5: व्यय 1 | F5: आपूर्ति
B6: 2011-02-04 | C6: A-12346 | D6: 238.00 | E6: व्यय 2
D7: 342.00 | E7: व्यय 1
D8: 110.00 | E8: व्यय 3
D9: 84.00 | E9: व्यय 4
D10: 54.00 | E10: व्यय 5
B11: कुल योग | D11: =SUBTOTAL(109,फरवरीव्यय[राशि]) -> 861.00

Sheet मार्च
B2: मार्च व्यय
B4: दिनांक | C4: क्रय आदेश# | D4: राशि | E4: श्रेणी | F4: वर्णन
B5: 2011-03-04 | C5: A-12345 | D5: 33.00 | E5: व्यय 1 | F5: आपूर्ति
B6: 2011-03-06 | C6: A-12346 | D6: 238.00 | E6: व्यय 2
D7: 55.00 | E7: व्यय 5
D8: 110.00 | E8: व्यय 3
D9: 84.00 | E9: व्यय 4
D10: 54.00 | E10: व्यय 5
B11: कुल योग | D11: =SUBTOTAL(109,मार्चव्यय[राशि]) -> 574.00

Sheet अप्रैल
B2: अप्रैल व्यय
B4: दिनांक | C4: क्रय आदेश# | D4: राशि | E4: श्रेणी | F4: वर्णन
B5: 2011-04-04 | C5: A-12345 | D5: 45.00 | E5: व्यय 1 | F5: आपूर्ति
B6: 2011-04-08 | C6: A-12346 | D6: 123.00 | E6: व्यय 2
D7: 342.00 | E7: व्यय 4
D8: 125.00 | E8: व्यय 3
D9: 84.00 | E9: व्यय 4
D10: 98.00 | E10: व्यय 5
B11: कुल योग | D11: =SUBTOTAL(109,अप्रैलव्यय[राशि]) -> 817.00

Sheet मई
B2: मई व्यय
B4: दिनांक | C4: क्रय आदेश# | D4: राशि | E4: श्रेणी | F4: वर्णन
B5: 2011-05-03 | C5: A-12345 | D5: 33.00 | E5: व्यय 1 | F5: आपूर्ति
B6: 2011-05-08 | C6: A-12346 | D6: 111.00 | E6: व्यय 2
D7: 342.00 | E7: व्यय 1
D8: 333.00 | E8: व्यय 3
D9: 125.00 | E9: व्यय 4
D10: 33.00 | E10: व्यय 5
B11: कुल योग | D11: =SUBTOTAL(109,मईव्यय[राशि]) -> 977.00

Sheet जून
B2: जून व्यय
B4: दिनांक | C4: क्रय आदेश# | D4: राशि | E4: श्रेणी | F4: वर्णन
B5: 2011-06-07 | C5: A-12345 | D5: 201.00 | E5: व्यय 1 | F5: आपूर्ति
B6: 2011-06-08 | C6: A-12346 | D6: 98.00 | E6: व्यय 2
D7: 342.00 | E7: व्यय 5
D8: 122.00 | E8: व्यय 3
D9: 187.00 | E9: व्यय 4
D10: 99.00 | E10: व्यय 5
B11: कुल योग | D11: =SUBTOTAL(109,जूनव्यय[राशि]) -> 1,049.00

Sheet जुलाई
B2: जुलाई व्यय
B4: दिनांक | C4: क्रय आदेश# | D4: राशि | E4: श्रेणी | F4: वर्णन
B5: 2011-07-09 | C5: A-12345 | E5: व्यय 1 | F5: आपूर्ति
B6: 2011-07-14 | C6: A-12346 | E6: व्यय 2
E7: व्यय 2
E8: व्यय 3
E9: व्यय 4
E10: व्यय 5
B11: कुल योग | D11: =SUBTOTAL(109,जुलाईव्यय[राशि]) -> 0.00

Sheet अगस्त
B2: अगस्त व्यय
B4: दिनांक | C4: क्रय आदेश# | D4: राशि | E4: श्रेणी | F4: वर्णन
B5: 2011-08-08 | C5: A-12345 | E5: व्यय 1 | F5: आपूर्ति
B6: 2011-08-09 | C6: A-12346 | E6: व्यय 2
E7: व्यय 2
E8: व्यय 3
E9: व्यय 4
E10: व्यय 5
B11: कुल योग | D11: =SUBTOTAL(109,अगस्तव्यय[राशि]) -> 0.00

Sheet सितंबर
B2: सितंबर व्यय
B4: दिनांक | C4: क्रय आदेश# | D4: राशि | E4: श्रेणी | F4: वर्णन
B5: 2011-09-09 | C5: A-12345 | E5: व्यय 1 | F5: आपूर्ति
B6: 2011-09-15 | C6: A-12346 | E6: व्यय 2
E7: व्यय 2
E8: व्यय 3
E9: व्यय 4
E10: व्यय 5
B11: कुल योग | D11: =SUBTOTAL(109,सितंबरव्यय[राशि]) -> 0.00

Sheet अक्टूबर
B2: अक्टूबर व्यय
B4: दिनांक | C4: क्रय आदेश# | D4: राशि | E4: श्रेणी | F4: वर्णन
B5: 2011-10-10 | C5: A-12345 | E5: व्यय 1 | F5: आपूर्ति
B6: 2011-10-21 | C6: A-12346 | E6: व्यय 2
E7: व्यय 2
E8: व्यय 3
E9: व्यय 4
E10: व्यय 5
B11: कुल योग | D11: =SUBTOTAL(109,अक्टूबरव्यय[राशि]) -> 0.00

Sheet नवंबर
B2: नवंबर व्यय
B4: दिनांक | C4: क्रय आदेश# | D4: राशि | E4: श्रेणी | F4: वर्णन
B5: 2011-11-14 | C5: A-12345 | E5: व्यय 1 | F5: आपूर्ति
B6: 2011-11-21 | C6: A-12346 | E6: व्यय 2
E7: व्यय 2
E8: व्यय 3
E9: व्यय 4
E10: व्यय 5
B11: कुल योग | D11: =SUBTOTAL(109,नवंबरव्यय[राशि]) -> 0.00

Sheet दिसंबर
B2: दिसंबर व्यय
B4: दिनांक | C4: क्रय आदेश# | D4: राशि | E4: श्रेणी | F4: वर्णन
B5: 2011-12-02 | C5: A-12345 | D5: 201.00 | E5: व्यय 1 | F5: आपूर्ति
B6: 2011-12-14 | C6: A-12346 | D6: 98.00 | E6: व्यय 2
D7: 342.00 | E7: व्यय 2
D8: 122.00 | E8: व्यय 3
D9: 187.00 | E9: व्यय 4
D10: 99.00 | E10: व्यय 5
B11: कुल योग | D11: =SUBTOTAL(109,दिसंबरव्यय[राशि]) -> 1,049.00
